[Event "Najdorf Memorial-A 2022"]
[Site "Warsaw"]
[Date "2022.07.14"]
[Round "6.6"]
[White "Skrzypczynski, Kacper"]
[Black "Gorkiewicz, Mateusz"]
[Result "0-1"]
[ECO "E40"]
[WhiteElo "1793"]
[BlackElo "2023"]
[Annotator "ChessBase"]
[PlyCount "128"]
[EventDate "2022.07.09"]
[EventType "swiss"]
[EventCountry "POL"]
[SourceTitle "playchess.com"]
[Source "ChessBase"]
[SourceQuality "1"]
[TimeControl "40/5400+30:1800+30"]

1. d4 {[%emt 0:00:03]} Nf6 {[%emt 0:00:12]} 2. c4 {[%emt 0:00:06]} e6 {[%emt 0:00:09]} 3. Nc3 {[%emt 0:00:11]} Bb4 {[%emt 0:01:06]} 4. e3 {[%emt 0:00:07]} d5 {[%emt 0:01:58]} 5. Bd3 {[%emt 0:03:57]} O-O {[%emt 0:04:32]} 6. cxd5 {[%emt 0:02:53]} exd5 {[%emt 0:07:22]} 7. Nge2 {[%emt 0:00:20]} c6 {[%emt 0:02:43]} 8. O-O {[%emt 0:00:21]} Re8 {[%emt 0:00:52]} 9. f3 {[%emt 0:05:39]} Nbd7 {[%emt 0:06:23]} 10. Kh1 {[%emt 0:01:44]} Nf8 {[%emt 0:06:17]} 11. Qc2 {[%emt 0:02:07]} Ne6 {[%emt 0:05:59]} 12. Bd2 {[%emt 0:03:52]} Be7 {[%emt 0:02:09]} 13. Be1 {[%emt 0:00:33]} c5 {[%emt 0:08:13]} 14. b3 {[%emt 0:00:48]} cxd4 {[%emt 0:03:10]} 15. exd4 {[%emt 0:00:07]} h6 {[%emt 0:02:19]} 16. Bf2 {[%emt 0:00:11]} a6 {[%emt 0:01:02]} 17. Na4 {[%emt 0:06:14]} Bd6 {[%emt 0:07:21]} 18. Nc5 {[%emt 0:01:11]} Nh5 {[%emt 0:03:15]} 19. Nxe6 {[%emt 0:07:34]} Bxe6 {[%emt 0:00:29]} 20. Qd2 {[%emt 0:01:39]} Qf6 {[%emt 0:03:09]} 21. Bg1 {[%emt 0:04:19]} Qh4 {[%emt 0:07:25]} 22. Qe1 {[%emt 0:04:09]} Qg5 {[%emt 0:01:16]} 23. Qf2 {[%emt 0:02:02]} Nf4 {[%emt 0:05:29]} 24. Nxf4 {[%emt 0:00:22]} Qxf4 {[%emt 0:00:12]} 25. g3 {[%emt 0:00:55]} Qf6 {[%emt 0:00:16]} 26. Rac1 {[%emt 0:01:31]} Rac8 {[%emt 0:00:34]} 27. Kg2 {[%emt 0:00:41]} Ba3 {[%emt 0:01:26]} 28. Rxc8 {[%emt 0:00:55]} Rxc8 {[%emt 0:00:08]} 29. Qd2 {[%emt 0:00:37]} Bf5 {[%emt 0:06:36]} 30. Bf2 {[%emt 0:09:06]} Qg6 {[%emt 0:02:04]} 31. Bxf5 {[%emt 0:00:31]} Qxf5 {[%emt 0:00:04]} 32. Qa5 {[%emt 0:00:21]} Bb2 {[%emt 0:04:58]} 33. g4 {[%emt 0:04:40]} Qd7 {[%emt 0:02:32]} 34. Qd2 {[%emt 0:01:02]} Ba3 {[%emt 0:01:14]} 35. Qa5 {[%emt 0:02:42]} Be7 {[%emt 0:01:43]} 36. Qd2 {[%emt 0:00:48]} Qc7 {[%emt 0:00:37]} 37. Be3 {[%emt 0:02:39]} Ba3 {[%emt 0:00:44]} 38. Qd3 {[%emt 0:06:07]} Qe7 {[%emt 0:01:32]} 39. Bf2 {[%emt 0:02:46]} Bb4 {[%emt 0:00:54]} 40. Qf5 {[%emt 0:00:00]} Qe6 {[%emt 0:00:00]} 41. Qf4 {[%emt 0:01:54]} Rc2 {[%emt 0:12:23]} 42. Qb8+ {[%emt 0:06:56]} Kh7 {[%emt 0:00:38]} 43. a3 {[%emt 0:03:18]} Bxa3 {[%emt 0:05:34]} 44. Qxb7 {[%emt 0:01:56]} Bc1 {[%emt 0:09:53]} 45. Qb8 {[%emt 0:03:15]} Bb2 {[%emt 0:02:26]} 46. Kg1 {[%emt 0:04:46]} Rxf2 {[%emt 0:01:18]} 47. Rxf2 {[%emt 0:01:04]} Bxd4 {[%emt 0:00:10]} 48. Kg2 {[%emt 0:00:53]} Bxf2 {[%emt 0:00:12]} 49. Kxf2 {[%emt 0:00:05]} g6 {[%emt 0:03:26]} 50. Qf4 {[%emt 0:01:41]} Qb6+ {[%emt 0:00:08]} 51. Ke2 {[%emt 0:04:02]} Kg8 {[%emt 0:00:06]} 52. Qa4 {[%emt 0:04:47]} Kf8 {[%emt 0:00:10]} 53. Qa3+ {[%emt 0:01:02]} Ke8 {[%emt 0:00:05]} 54. Kd3 {[%emt 0:00:17]} Kd7 {[%emt 0:00:24]} 55. Qb2 {[%emt 0:01:17]} Qb4 {[%emt 0:00:41]} 56. Qc2 {[%emt 0:07:42]} a5 {[%emt 0:01:02]} 57. h4 {[%emt 0:01:34]} Kd6 {[%emt 0:00:56]} 58. Qb2 {[%emt 0:03:19]} Qf4 {[%emt 0:00:21]} 59. Qa3+ {[%emt 0:00:43]} Ke6 {[%emt 0:00:59]} 60. Qf8 {[%emt 0:07:44]} Qxf3+ {[%emt 0:00:08]} 61. Kd2 {[%emt 0:00:14]} Qxb3 {[%emt 0:00:33]} 62. Qe8+ {[%emt 0:00:38]} Kf6 {[%emt 0:00:14]} 63. Qd8+ {[%emt 0:01:28]} Kg7 {[%emt 0:00:29]} 64. Qxa5 {[%emt 0:00:11]} Qc4 {[%emt 0:00:17]} 0-1

[Event "Najdorf Memorial-A 2022"]
[Site "Warsaw"]
[Date "2022.07.14"]
[Round "6.7"]
[White "Mickiewicz, Piotr"]
[Black "Zdybel, Przemyslaw"]
[Result "1-0"]
[ECO "A16"]
[WhiteElo "2284"]
[BlackElo "2026"]
[Annotator "ChessBase"]
[PlyCount "49"]
[EventDate "2022.07.09"]
[EventType "swiss"]
[EventCountry "POL"]
[SourceTitle "playchess.com"]
[Source "ChessBase"]
[SourceQuality "1"]
[TimeControl "40/5400+30:1800+30"]

1. c4 {[%emt 0:18:42]} Nf6 {[%emt 0:00:23]} 2. Nc3 {[%emt 0:01:38]} g6 {[%emt 0:04:43]} 3. e4 {[%emt 0:01:02]} e5 {[%emt 0:00:48]} 4. Nf3 {[%emt 0:00:18]} Nc6 {[%emt 0:02:20]} 5. d4 {[%emt 0:00:51]} exd4 {[%emt 0:00:13]} 6. Nxd4 {[%emt 0:00:04]} Bg7 {[%emt 0:00:29]} 7. Nxc6 {[%emt 0:04:15]} bxc6 {[%emt 0:16:21]} 8. e5 {[%emt 0:13:30]} Qe7 {[%emt 0:01:07]} 9. Qe2 {[%emt 0:00:08]} Ng8 {[%emt 0:00:27]} 10. Bf4 {[%emt 0:00:38]} Rb8 {[%emt 0:11:15]} 11. O-O-O {[%emt 0:02:16]} Rb7 {[%emt 0:05:24]} 12. Qd2 {[%emt 0:19:22]} Qb4 {[%emt 0:00:40]} 13. Ne4 {[%emt 0:16:51]} d5 {[%emt 0:11:23]} 14. Qxb4 {[%emt 0:05:38]} Rxb4 {[%emt 0:00:02]} 15. a3 {[%emt 0:00:58]} Rb6 {[%emt 0:00:02]} 16. cxd5 {[%emt 0:05:31]} cxd5 {[%emt 0:00:03]} 17. Rxd5 {[%emt 0:00:56]} Bb7 {[%emt 0:02:15]} 18. Bb5+ {[%emt 0:01:27]} Rxb5 {[%emt 0:03:53]} 19. Rxb5 {[%emt 0:00:03]} Bxe4 {[%emt 0:00:07]} 20. Rb8+ {[%emt 0:02:28]} Ke7 {[%emt 0:00:01]} 21. Rd1 {[%emt 0:00:21]} g5 {[%emt 0:01:47]} 22. Bxg5+ {[%emt 0:01:06]} f6 {[%emt 0:00:10]} 23. exf6+ {[%emt 0:00:25]} Nxf6 {[%emt 0:00:47]} 24. Rxh8 {[%emt 0:00:08]} Bxh8 {[%emt 0:00:06]} 25. Re1 {[%emt 0:00:05]} 1-0

[Event "Najdorf Memorial-A 2022"]
[Site "Warsaw"]
[Date "2022.07.14"]
[Round "6.8"]
[White "Markiewicz, Jerzy"]
[Black "Sowul, Bartosz"]
[Result "1-0"]
[ECO "B57"]
[WhiteElo "2205"]
[BlackElo "2283"]
[Annotator "ChessBase"]
[PlyCount "87"]
[EventDate "2022.07.09"]
[EventType "swiss"]
[EventCountry "POL"]
[SourceTitle "playchess.com"]
[Source "ChessBase"]
[SourceQuality "1"]
[TimeControl "40/5400+30:1800+30"]

1. e4 {[%emt 0:00:04]} c5 {[%emt 0:00:06]} 2. Nf3 {[%emt 0:00:07]} Nc6 {[%emt 0:00:05]} 3. d4 {[%emt 0:00:15]} cxd4 {[%emt 0:00:12]} 4. Nxd4 {[%emt 0:00:08]} Nf6 {[%emt 0:00:05]} 5. Nc3 {[%emt 0:00:11]} d6 {[%emt 0:00:07]} 6. Bc4 {[%emt 0:02:53]} Qb6 {[%emt 0:00:14]} 7. Nb3 {[%emt 0:00:14]} e6 {[%emt 0:00:07]} 8. O-O {[%emt 0:02:14]} Be7 {[%emt 0:03:28]} 9. Be3 {[%emt 0:00:44]} Qc7 {[%emt 0:00:55]} 10. f4 {[%emt 0:00:20]} a6 {[%emt 0:02:20]} 11. a4 Nb4 {[%emt 0:07:56]} 12. Bd3 {[%emt 0:07:52]} e5 {[%emt 0:04:40]} 13. a5 {[%emt 0:00:32]} O-O {[%emt 0:11:34]} 14. Ra4 {[%emt 0:06:36]} Nxd3 {[%emt 0:07:59]} 15. Qxd3 {[%emt 0:03:17]} exf4 {[%emt 0:08:41]} 16. Rxf4 {[%emt 0:08:30]} Be6 {[%emt 0:02:34]} 17. Nd4 {[%emt 0:00:35]} Nd7 {[%emt 0:05:41]} 18. Nxe6 {[%emt 0:01:56]} fxe6 {[%emt 0:00:06]} 19. Qc4 {[%emt 0:01:50]} Qxc4 {[%emt 0:02:19]} 20. Rxf8+ {[%emt 0:00:11]} Kxf8 {[%emt 0:00:43]} 21. Rxc4 {[%emt 0:00:06]} Bd8 {[%emt 0:00:26]} 22. Rb4 {[%emt 0:01:43]} Rb8 {[%emt 0:02:49]} 23. Ra4 {[%emt 0:01:55]} Rc8 {[%emt 0:10:54]} 24. Rb4 {[%emt 0:04:04]} Nc5 {[%emt 0:07:10]} 25. Rc4 {[%emt 0:09:49]} Rc6 {[%emt 0:08:46]} 26. e5 {[%emt 0:00:16]} Nd7 {[%emt 0:00:37]} 27. Rxc6 {[%emt 0:00:24]} bxc6 {[%emt 0:00:05]} 28. exd6 {[%emt 0:00:10]} Bxa5 {[%emt 0:00:06]} 29. Ne4 {[%emt 0:00:09]} h6 {[%emt 0:03:43]} 30. Nc5 {[%emt 0:06:48]} Nxc5 {[%emt 0:10:07]} 31. Bxc5 {[%emt 0:00:07]} Bd8 {[%emt 0:00:05]} 32. c4 {[%emt 0:04:11]} Ke8 {[%emt 0:01:07]} 33. Bd4 {[%emt 0:00:32]} Bf6 {[%emt 0:00:25]} 34. Bxf6 {[%emt 0:00:10]} gxf6 {[%emt 0:00:05]} 35. c5 {[%emt 0:00:03]} f5 {[%emt 0:01:10]} 36. Kf2 {[%emt 0:00:40]} e5 {[%emt 0:00:30]} 37. Kf3 {[%emt 0:00:13]} h5 {[%emt 0:00:27]} 38. Kg3 {[%emt 0:01:07]} Kd7 {[%emt 0:00:25]} 39. Kh4 {[%emt 0:00:49]} Ke6 {[%emt 0:00:39]} 40. Kxh5 {[%emt 0:00:00]} e4 {[%emt 0:00:00]} 41. Kh4 {[%emt 0:00:54]} f4 {[%emt 0:01:07]} 42. Kg4 {[%emt 0:00:12]} f3 {[%emt 0:00:23]} 43. gxf3 {[%emt 0:00:14]} e3 {[%emt 0:00:04]} 44. Kg3 {[%emt 0:00:06]} 1-0

[Event "Najdorf Memorial-A 2022"]
[Site "Warsaw"]
[Date "2022.07.14"]
[Round "6.8"]
[White "Jaskiewicz, Kacper"]
[Black "Kaczmarska, Joanna"]
[Result "1-0"]
[ECO "C60"]
[WhiteElo "1756"]
[BlackElo "1965"]
[Annotator "ChessBase"]
[PlyCount "127"]
[EventDate "2022.07.09"]
[EventType "swiss"]
[EventCountry "POL"]
[SourceTitle "playchess.com"]
[Source "ChessBase"]
[SourceQuality "1"]
[TimeControl "40/5400+30:1800+30"]

1. e4 {[%emt 0:00:02]} e5 {[%emt 0:00:09]} 2. Nf3 {[%emt 0:00:03]} Nc6 {[%emt 0:00:03]} 3. Bb5 {[%emt 0:00:04]} g6 {[%emt 0:02:54]} 4. c3 {[%emt 0:05:46]} d6 {[%emt 0:01:06]} 5. d4 {[%emt 0:00:39]} Bd7 {[%emt 0:00:13]} 6. Be3 {[%emt 0:03:52]} Bg7 {[%emt 0:01:48]} 7. Nbd2 {[%emt 0:01:45]} h6 {[%emt 0:07:38]} 8. dxe5 {[%emt 0:02:15]} dxe5 {[%emt 0:06:14]} 9. Bc5 {[%emt 0:01:43]} a6 {[%emt 0:06:26]} 10. Bc4 {[%emt 0:01:46]} b6 {[%emt 0:01:23]} 11. Ba3 {[%emt 0:00:23]} Na5 {[%emt 0:03:56]} 12. Bd3 {[%emt 0:06:59]} Ne7 {[%emt 0:02:30]} 13. Qe2 {[%emt 0:00:14]} Qc8 {[%emt 0:05:14]} 14. Nf1 {[%emt 0:06:03]} c5 {[%emt 0:03:30]} 15. b4 {[%emt 0:00:55]} Nb7 {[%emt 0:00:36]} 16. Bxa6 {[%emt 0:03:30]} b5 {[%emt 0:00:30]} 17. Bxb7 {[%emt 0:00:27]} Qxb7 {[%emt 0:00:05]} 18. Bb2 {[%emt 0:00:20]} Be6 {[%emt 0:11:40]} 19. a3 {[%emt 0:02:17]} Bc4 {[%emt 0:00:48]} 20. Qe3 Rd8 {[%emt 0:02:40]} 21. N1d2 {[%emt 0:06:52]} Rd3 {[%emt 0:10:13]} 22. Qxc5 {[%emt 0:00:10]} O-O {[%emt 0:12:19]} 23. Nxc4 {[%emt 0:00:43]} Rc8 {[%emt 0:01:08]} 24. Nd6 {[%emt 0:01:59]} Rxd6 {[%emt 0:00:27]} 25. Qxd6 {[%emt 0:00:06]} Qxe4+ {[%emt 0:00:51]} 26. Kf1 {[%emt 0:03:50]} Nd5 {[%emt 0:02:51]} 27. Re1 {[%emt 0:10:20]} Qd3+ {[%emt 0:06:44]} 28. Kg1 {[%emt 0:00:13]} e4 {[%emt 0:00:06]} 29. Nh4 {[%emt 0:17:14]} Qd2 {[%emt 0:02:08]} 30. Rf1 {[%emt 0:00:07]} e3 {[%emt 0:02:48]} 31. Nf3 {[%emt 0:04:39]} Qxb2 {[%emt 0:01:18]} 32. Qxd5 {[%emt 0:14:10]} exf2+ {[%emt 0:00:40]} 33. Rxf2 {[%emt 0:00:05]} Qc1+ {[%emt 0:00:44]} 34. Rf1 {[%emt 0:00:03]} Qe3+ {[%emt 0:00:08]} 35. Rf2 {[%emt 0:00:12]} Rxc3 {[%emt 0:00:26]} 36. h3 {[%emt 0:01:34]} Rc1+ {[%emt 0:02:37]} 37. Kh2 {[%emt 0:00:13]} Rxh1+ {[%emt 0:00:20]} 38. Kxh1 {[%emt 0:00:42]} Qxf2 {[%emt 0:00:08]} 39. Qxb5 {[%emt 0:00:30]} Bf8 {[%emt 0:00:39]} 40. Qd3 {[%emt 0:00:00]} Qb2 {[%emt 0:00:00]} 41. Kh2 {[%emt 0:06:40]} Be7 {[%emt 0:03:22]} 42. Qa6 {[%emt 0:03:35]} Qc3 {[%emt 0:03:35]} 43. h4 {[%emt 0:02:44]} Qc7+ {[%emt 0:04:07]} 44. Kg1 {[%emt 0:00:19]} Bd6 {[%emt 0:04:35]} 45. Qd3 {[%emt 0:05:16]} Bg3 {[%emt 0:05:36]} 46. Qe3 {[%emt 0:04:59]} Bf4 {[%emt 0:06:44]} 47. Qd4 {[%emt 0:06:25]} Qc1+ {[%emt 0:02:16]} 48. Kf2 {[%emt 0:00:06]} Qc2+ {[%emt 0:00:30]} 49. Kf1 {[%emt 0:00:44]} Bg3 {[%emt 0:02:46]} 50. Qd2 {[%emt 0:01:19]} Qb1+ {[%emt 0:01:36]} 51. Ke2 {[%emt 0:00:04]} Qe4+ {[%emt 0:00:11]} 52. Qe3 {[%emt 0:00:49]} Qc4+ {[%emt 0:00:13]} 53. Qd3 {[%emt 0:00:07]} Qa2+ {[%emt 0:01:07]} 54. Nd2 {[%emt 0:00:47]} Bf4 {[%emt 0:02:23]} 55. b5 {[%emt 0:01:55]} Kh7 {[%emt 0:01:31]} 56. g3 {[%emt 0:04:47]} Bxd2 {[%emt 0:01:08]} 57. Qxd2 {[%emt 0:00:03]} Qxa3 {[%emt 0:00:19]} 58. Qd5 {[%emt 0:00:47]} Kg8 {[%emt 0:00:58]} 59. Qd8+ {[%emt 0:00:29]} Kh7 {[%emt 0:00:28]} 60. b6 {[%emt 0:02:50]} Qxg3 {[%emt 0:00:18]} 61. Qc7 {[%emt 0:00:03]} Qg2+ {[%emt 0:00:39]} 62. Kd3 {[%emt 0:00:14]} Qd5+ {[%emt 0:00:28]} 63. Kc3 {[%emt 0:00:12]} Qa5+ {[%emt 0:00:21]} 64. Kc4 {[%emt 0:00:05]} 1-0

[Event "Najdorf Memorial-A 2022"]
[Site "Warsaw"]
[Date "2022.07.14"]
[Round "6.9"]
[White "Fiszer, Bartosz"]
[Black "Backiel, Hubert"]
[Result "1/2-1/2"]
[ECO "C78"]
[WhiteElo "2228"]
[BlackElo "2045"]
[Annotator "ChessBase"]
[PlyCount "76"]
[EventDate "2022.07.09"]
[EventType "swiss"]
[EventCountry "POL"]
[SourceTitle "playchess.com"]
[Source "ChessBase"]
[SourceQuality "1"]
[TimeControl "40/5400+30:1800+30"]

1. e4 {[%emt 0:00:40]} e5 {[%emt 0:00:06]} 2. Nf3 {[%emt 0:00:18]} Nc6 {[%emt 0:00:17]} 3. Bb5 {[%emt 0:00:05]} a6 {[%emt 0:00:06]} 4. Ba4 {[%emt 0:00:02]} Nf6 {[%emt 0:00:09]} 5. O-O {[%emt 0:00:21]} b5 {[%emt 0:00:08]} 6. Bb3 {[%emt 0:00:01]} Bc5 {[%emt 0:00:09]} 7. c3 {[%emt 0:02:42]} d6 {[%emt 0:01:35]} 8. d4 {[%emt 0:00:35]} Bb6 {[%emt 0:00:08]} 9. h3 {[%emt 0:01:33]} h6 {[%emt 0:01:18]} 10. Be3 {[%emt 0:01:28]} O-O {[%emt 0:04:47]} 11. Nbd2 {[%emt 0:01:18]} Bb7 {[%emt 0:05:21]} 12. dxe5 {[%emt 0:15:59]} dxe5 {[%emt 0:12:18]} 13. Qe2 {[%emt 0:01:00]} Nh5 {[%emt 0:09:54]} 14. Bxb6 {[%emt 0:07:59]} Nf4 {[%emt 0:00:55]} 15. Qe3 {[%emt 0:00:58]} cxb6 {[%emt 0:00:03]} 16. Nxe5 {[%emt 0:21:00]} Qg5 {[%emt 0:32:25]} 17. Ng4 {[%emt 0:00:28]} Ne5 {[%emt 0:00:35]} 18. Nf3 {[%emt 0:02:33]} Nxg4 {[%emt 0:03:45]} 19. Nxg5 Nxe3 {[%emt 0:00:08]} 20. fxe3 {[%emt 0:00:29]} Ne2+ {[%emt 0:00:43]} 21. Kf2 {[%emt 0:00:39]} hxg5 {[%emt 0:02:08]} 22. Kxe2 {[%emt 0:00:03]} Bxe4 {[%emt 0:00:26]} 23. Rad1 Bxg2 {[%emt 0:13:00]} 24. Rg1 {[%emt 0:02:53]} Be4 {[%emt 0:02:59]} 25. Rd7 g6 {[%emt 0:02:34]} 26. Rxg5 {[%emt 0:10:44]} Bf5 {[%emt 0:02:27]} 27. Rb7 {[%emt 0:03:33]} Kg7 {[%emt 0:00:10]} 28. Rxb6 {[%emt 0:02:36]} Rfb8 {[%emt 0:00:25]} 29. Rxb8 {[%emt 0:17:46]} Rxb8 {[%emt 0:00:30]} 30. Bd5 {[%emt 0:03:21]} Bxh3 {[%emt 0:00:00]} 31. e4 {[%emt 0:02:17]} Kf6 {[%emt 0:00:45]} 32. Rg3 {[%emt 0:00:39]} Be6 {[%emt 0:00:06]} 33. Kd3 {[%emt 0:01:02]} Ke5 {[%emt 0:01:03]} 34. Rg5+ {[%emt 0:00:31]} Kf4 {[%emt 0:00:07]} 35. Rg2 {[%emt 0:00:25]} Ke5 {[%emt 0:00:22]} 36. Rg5+ {[%emt 0:00:33]} Kf4 {[%emt 0:00:24]} 37. Rg2 {[%emt 0:00:41]} Ke5 {[%emt 0:00:03]} 38. Rg5+ {[%emt 0:00:11]} Kf4 {[%emt 0:00:12]} 1/2-1/2

[Event "Najdorf Memorial-A 2022"]
[Site "Warsaw"]
[Date "2022.07.14"]
[Round "6.9"]
[White "Adamski, Jan"]
[Black "Haliniak, Wojciech"]
[Result "1/2-1/2"]
[ECO "A04"]
[WhiteElo "2136"]
[BlackElo "1827"]
[Annotator "ChessBase"]
[PlyCount "20"]
[EventDate "2022.07.09"]
[EventType "swiss"]
[EventCountry "POL"]
[SourceTitle "playchess.com"]
[Source "ChessBase"]
[SourceQuality "1"]
[TimeControl "40/5400+30:1800+30"]

1. Nf3 {[%emt 0:00:06]} f5 {[%emt 0:00:08]} 2. c4 {[%emt 0:01:04]} Nf6 {[%emt 0:00:41]} 3. Nc3 {[%emt 0:00:47]} g6 {[%emt 0:03:28]} 4. d3 {[%emt 0:00:55]} d6 {[%emt 0:03:08]} 5. e4 {[%emt 0:01:46]} e5 {[%emt 0:02:51]} 6. exf5 {[%emt 0:06:11]} Bxf5 {[%emt 0:08:30]} 7. d4 {[%emt 0:01:45]} e4 {[%emt 0:05:07]} 8. Nd2 {[%emt 0:10:36]} Nc6 {[%emt 0:10:25]} 9. Be2 {[%emt 0:07:20]} Qd7 {[%emt 0:11:02]} 10. Nb3 {[%emt 0:15:19]} Ng8 1/2-1/2

[Event "Najdorf Memorial-A 2022"]
[Site "Warsaw"]
[Date "2022.07.14"]
[Round "6.10"]
[White "Maslanka, Wojciech"]
[Black "Golubka, Petro"]
[Result "0-1"]
[ECO "B41"]
[WhiteElo "2000"]
[BlackElo "2378"]
[Annotator "ChessBase"]
[PlyCount "102"]
[EventDate "2022.07.09"]
[EventType "swiss"]
[EventCountry "POL"]
[SourceTitle "playchess.com"]
[Source "ChessBase"]
[SourceQuality "1"]
[TimeControl "40/5400+30:1800+30"]

1. e4 {[%emt 0:00:03]} c5 {[%emt 0:08:18]} 2. Nf3 {[%emt 0:00:08]} e6 {[%emt 0:00:08]} 3. d4 {[%emt 0:00:06]} cxd4 {[%emt 0:00:02]} 4. Nxd4 {[%emt 0:00:12]} a6 {[%emt 0:00:08]} 5. c4 {[%emt 0:00:13]} d6 {[%emt 0:00:03]} 6. Nc3 {[%emt 0:00:16]} Nf6 {[%emt 0:00:03]} 7. Be2 {[%emt 0:02:03]} Be7 {[%emt 0:00:02]} 8. Be3 {[%emt 0:01:18]} O-O {[%emt 0:00:14]} 9. O-O {[%emt 0:00:45]} b6 {[%emt 0:00:14]} 10. Qd2 {[%emt 0:02:29]} Bb7 {[%emt 0:00:10]} 11. f3 {[%emt 0:00:29]} Nbd7 {[%emt 0:00:04]} 12. Rfd1 {[%emt 0:00:50]} Kh8 {[%emt 0:00:03]} 13. Rac1 {[%emt 0:00:39]} Rg8 {[%emt 0:00:16]} 14. b4 {[%emt 0:04:35]} Rc8 {[%emt 0:00:22]} 15. a3 {[%emt 0:00:54]} h6 {[%emt 0:00:10]} 16. Nb3 {[%emt 0:03:55]} g5 {[%emt 0:00:37]} 17. Bf2 {[%emt 0:23:19]} Ne5 {[%emt 0:24:15]} 18. Na4 {[%emt 0:06:20]} Nfd7 {[%emt 0:18:13]} 19. Qd4 {[%emt 0:05:28]} Rc6 {[%emt 0:02:50]} 20. b5 {[%emt 0:02:47]} axb5 {[%emt 0:02:38]} 21. cxb5 {[%emt 0:00:42]} Rxc1 {[%emt 0:01:01]} 22. Rxc1 {[%emt 0:00:12]} d5 {[%emt 0:06:24]} 23. Nxb6 {[%emt 0:05:54]} Qxb6 {[%emt 0:02:50]} 24. Qxb6 {[%emt 0:00:21]} Nxb6 {[%emt 0:00:03]} 25. Bxb6 {[%emt 0:00:08]} Bf6 {[%emt 0:03:55]} 26. a4 {[%emt 0:26:12]} dxe4 {[%emt 0:00:46]} 27. fxe4 {[%emt 0:00:06]} Bxe4 {[%emt 0:00:13]} 28. a5 {[%emt 0:00:18]} Bd5 {[%emt 0:00:53]} 29. Nd2 {[%emt 0:01:45]} g4 {[%emt 0:00:05]} 30. Be3 {[%emt 0:00:57]} Nf3+ {[%emt 0:03:11]} 31. Kh1 {[%emt 0:05:49]} Nh4 {[%emt 0:02:56]} 32. Bf1 {[%emt 0:00:06]} Nf5 {[%emt 0:03:03]} 33. Bc5 {[%emt 0:01:32]} g3 {[%emt 0:06:36]} 34. h3 {[%emt 0:00:30]} Bg5 {[%emt 0:04:46]} 35. Bb4 {[%emt 0:01:53]} Ne3 {[%emt 0:03:56]} 36. b6 {[%emt 0:01:36]} Nxf1 {[%emt 0:02:05]} 37. Rxf1 {[%emt 0:00:07]} Be3 {[%emt 0:03:30]} 38. Bc3+ {[%emt 0:03:28]} Kh7 {[%emt 0:00:20]} 39. Rxf7+ {[%emt 0:00:31]} Kg6 {[%emt 0:00:06]} 40. Rf6+ {[%emt 0:00:00]} Kh5 {[%emt 0:00:00]} 41. Nf1 {[%emt 0:16:53]} Rc8 {[%emt 0:08:48]} 42. Be1 {[%emt 0:12:15]} Rc1 {[%emt 0:04:43]} 43. Bxg3 {[%emt 0:00:24]} Bd4 {[%emt 0:08:09]} 44. Rf4 {[%emt 0:02:35]} e5 {[%emt 0:04:51]} 45. Rf8 {[%emt 0:01:02]} Bc5 {[%emt 0:00:20]} 46. Rf6 {[%emt 0:00:09]} Kg5 {[%emt 0:00:26]} 47. Bxe5 {[%emt 0:00:15]} Rc2 {[%emt 0:01:06]} 48. h4+ {[%emt 0:00:55]} Kxh4 {[%emt 0:03:06]} 49. Rg6 {[%emt 0:00:20]} Rxg2 {[%emt 0:02:14]} 50. Bf6+ {[%emt 0:01:12]} Rg5+ {[%emt 0:00:31]} 51. Kh2 {[%emt 0:00:05]} Bg1# {[%emt 0:00:14]} 0-1

[Event "Najdorf Memorial-A 2022"]
[Site "Warsaw"]
[Date "2022.07.14"]
[Round "6.10"]
[White "Hertlein, Irena"]
[Black "Kulpa, Zuzanna"]
[Result "1/2-1/2"]
[ECO "C95"]
[WhiteElo "1850"]
[BlackElo "1985"]
[Annotator "ChessBase"]
[PlyCount "82"]
[EventDate "2022.07.09"]
[EventType "swiss"]
[EventCountry "POL"]
[SourceTitle "playchess.com"]
[Source "ChessBase"]
[SourceQuality "1"]
[TimeControl "40/5400+30:1800+30"]

1. e4 e5 2. Nf3 Nc6 3. Bb5 a6 4. Ba4 Nf6 5. O-O Be7 6. Re1 b5 7. Bb3 d6 8. c3 O-O 9. h3 Nb8 10. d4 Nbd7 11. c4 c6 12. Nc3 b4 13. Nb1 c5 14. d5 Nb6 15. Nbd2 a5 16. a4 Ba6 17. Ba2 Re8 18. b3 Bf8 19. Nf1 g6 20. Bb1 Bg7 21. Ra2 Nh5 22. g3 Qd7 23. Kg2 Rab8 24. Be3 h6 25. N1h2 Nf6 26. Rh1 Rbd8 27. Qc1 Bc8 28. Ng4 h5 29. Nh6+ Kf8 30. Bg5 Ke7 31. Bxf6+ Bxf6 32. Ng5 Rf8 33. Nh7 Rh8 34. Nxf6 Kxf6 35. g4 Kg7 36. g5 Rdf8 37. f4 exf4 38. Rf2 f6 39. Rxf4 fxg5 40. Rxf8 Rxf8 41. Qxg5 Qd8 1/2-1/2

[Event "Najdorf Memorial-A 2022"]
[Site "Warsaw"]
[Date "2022.07.14"]
[Round "6.11"]
[White "Murchadha, Oissine"]
[Black "Bartodziej, Bartosz"]
[Result "1/2-1/2"]
[ECO "B51"]
[WhiteElo "1984"]
[BlackElo "1809"]
[Annotator "ChessBase"]
[PlyCount "91"]
[EventDate "2022.07.09"]
[EventType "swiss"]
[EventCountry "POL"]
[SourceTitle "playchess.com"]
[Source "ChessBase"]
[SourceQuality "1"]
[TimeControl "40/5400+30:1800+30"]

1. e4 {[%emt 0:01:31]} c5 {[%emt 0:00:04]} 2. Nf3 {[%emt 0:00:05]} d6 {[%emt 0:00:10]} 3. Bb5+ {[%emt 0:00:07]} Nd7 {[%emt 0:00:07]} 4. c4 {[%emt 0:00:52]} Ngf6 {[%emt 0:00:36]} 5. Nc3 {[%emt 0:00:20]} g6 {[%emt 0:00:47]} 6. h3 {[%emt 0:00:35]} Bg7 {[%emt 0:00:24]} 7. d3 {[%emt 0:00:13]} O-O {[%emt 0:00:18]} 8. Ba4 {[%emt 0:00:06]} a6 {[%emt 0:01:44]} 9. O-O {[%emt 0:00:51]} Rb8 {[%emt 0:07:30]} 10. Be3 {[%emt 0:04:18]} b5 {[%emt 0:08:59]} 11. Bb3 {[%emt 0:04:50]} bxc4 {[%emt 0:09:38]} 12. dxc4 {[%emt 0:00:26]} a5 {[%emt 0:08:42]} 13. Qc2 {[%emt 0:09:17]} Ba6 {[%emt 0:07:23]} 14. Rab1 {[%emt 0:18:55]} Qc7 {[%emt 0:28:15]} 15. Rfe1 {[%emt 0:06:54]} Nb6 {[%emt 0:03:41]} 16. Na4 {[%emt 0:03:37]} Nfd7 {[%emt 0:01:36]} 17. Nxb6 {[%emt 0:03:21]} Qxb6 {[%emt 0:05:10]} 18. Ba4 {[%emt 0:00:57]} Ne5 {[%emt 0:05:51]} 19. Nd2 {[%emt 0:00:46]} Nc6 {[%emt 0:02:27]} 20. Bxc6 {[%emt 0:01:05]} Qxc6 {[%emt 0:00:02]} 21. b3 {[%emt 0:06:07]} Rb4 {[%emt 0:01:34]} 22. Qd3 {[%emt 0:02:28]} Rfb8 {[%emt 0:00:56]} 23. h4 {[%emt 0:04:41]} h5 {[%emt 0:00:50]} 24. Nf1 {[%emt 0:12:02]} a4 {[%emt 0:00:39]} 25. Bd2 {[%emt 0:06:58]} axb3 {[%emt 0:00:06]} 26. axb3 {[%emt 0:00:11]} R4b6 {[%emt 0:01:01]} 27. Ba5 {[%emt 0:00:33]} R6b7 {[%emt 0:00:01]} 28. Nd2 {[%emt 0:00:20]} Qd7 {[%emt 0:04:02]} 29. g3 {[%emt 0:02:52]} Bh6 {[%emt 0:01:24]} 30. Nf1 {[%emt 0:04:48]} Ra7 {[%emt 0:00:53]} 31. Bd2 {[%emt 0:00:09]} Bg7 {[%emt 0:00:11]} 32. Bc3 {[%emt 0:00:06]} Bc8 {[%emt 0:00:46]} 33. Bxg7 {[%emt 0:01:45]} Kxg7 {[%emt 0:00:02]} 34. Ra1 {[%emt 0:00:31]} Rab7 {[%emt 0:00:04]} 35. Nd2 {[%emt 0:00:31]} Qe6 {[%emt 0:00:16]} 36. Qd5 {[%emt 0:01:30]} Qf6 {[%emt 0:00:35]} 37. e5 {[%emt 0:01:53]} Qf5 {[%emt 0:00:27]} 38. Qe4 {[%emt 0:02:19]} Qxe4 {[%emt 0:01:31]} 39. Rxe4 {[%emt 0:00:25]} Bf5 {[%emt 0:00:11]} 40. Re3 {[%emt 0:00:00]} Bc2 {[%emt 0:00:00]} 41. Ra3 {[%emt 0:08:07]} Rd8 {[%emt 0:18:44]} 42. Ne4 {[%emt 0:07:20]} Bxe4 {[%emt 0:00:31]} 43. Rxe4 {[%emt 0:00:06]} d5 {[%emt 0:02:41]} 44. cxd5 {[%emt 0:01:49]} Rxd5 {[%emt 0:00:03]} 45. Re3 {[%emt 0:01:22]} e6 {[%emt 0:03:08]} 46. f4 {[%emt 0:03:19]} 1/2-1/2